Cogmind - Beta 16 --- EXPLORER MODE // 2025.12.11 @ 12:57:47 Player: K.K.Y. Result: Destroyed by H-55 Commando with Gauss Rifle Performance ------------- Evolutions (0) 0 Regions Visited (4) 800 Robots Destroyed (42) 210 Value Destroyed (778) 778 Prototype IDs (19) 380 Alien Tech Used (0) 0 Bonus (2139) 2139 TOTAL SCORE: 4307 Bonus ------- Follower Combat Kills 139 Delivered SUBCON Basin 2000 Cogmind --------- Core Integrity 0/250 Matter 139/300 Energy 250/250 System Corruption 1% Temperature Hot (240) Movement Rolling (130) Ox2 Location -7/Recycling Parts ------- > --- POWER (1) -------- Ion Engine > --- PROPULSION (3) --- Armored Huge Wheel > --- UTILITY (2) ------ High-capacity Storage Unit Advanced Weight Redist. System > --- WEAPON (2) ------- Slug Cannon Slug Cannon > --- INVENTORY (20) --- Improved Deuterium Engine Flight Unit Flight Unit VTOL Module Improved Sensor Array Experimental Sensor Array Improved Medium Armor Plating Tech Extrapolator System Restoration Module Arc Projector Minigun Heavy Battle Rifle Proton Missile Launcher Plasma Cutter Katana Makeshift Axe Peak State ------------ > --- POWER ------------ Ion Engine > --- PROPULSION ------- Flight Unit Flight Unit Cesium-ion Thruster > --- UTILITY ---------- High-capacity Storage Unit Makeshift System Shield > --- WEAPON ----------- Heavy Battle Rifle Slug Cannon > --- INVENTORY -------- Experimental Sensor Array Minigun Slug Cannon Plasma Cutter Makeshift Axe SUBCON Basin [Rating: 39] Favorites ----------- Power Light Ion Engine Engine Light Ion Engine Propulsion Flight Unit Wheel Wheel Flight Unit Flight Unit Utility Makeshift System Shield Device Sensor Array Storage High-capacity Storage Unit Hackware Makeshift System Shield Weapon Slug Cannon Energy Gun Small Laser Ballistic Gun Heavy Battle Rifle Ballistic Cannon Slug Cannon Special Weapon Plasma Cutter Slashing Weapon Makeshift Axe Build | -11 -10 -10 -10 -7 ------- Run | Yrd Mat Min Sub Rec Slots Evolved 1 | . 1 . . . Power . | . . . . . Propulsion 1 | . 1 . . . Utility . | . . . . . Weapon . | . . . . . Parts Attached 42 | 5 11 9 15 2 Power 6 | 1 1 2 2 . Engine 6 | 1 1 2 2 . Core . | . . . . . Reactor . | . . . . . Propulsion 16 | 2 2 5 6 1 Treads . | . . . . . Leg . | . . . . . Wheel 3 | 2 . . . 1 Hover . | . . . . . Flight 13 | . 2 5 6 . Utility 7 | 1 2 . 3 1 Device 5 | 1 2 . 1 1 Storage 1 | . . . 1 . Processor . | . . . . . Hackware 1 | . . . 1 . Protection . | . . . . . Artifact . | . . . . . Weapon 13 | 1 6 2 4 . Energy Gun 4 | 1 3 . . . Energy Cannon . | . . . . . Ballistic Gun 5 | . 2 1 2 . Ballistic Cannon 2 | . . . 2 . Launcher . | . . . . . Special Weapon 1 | . 1 . . . Impact Weapon . | . . . . . Slashing Weapon 1 | . . 1 . . Piercing Weapon . | . . . . . Special Melee Weapon . | . . . . . Unidentified Prototypes 1 | . . . 1 . Parts Lost 4 | . . . 3 1 Power 1 | . . . 1 . Propulsion 2 | . . . 1 1 Utility 1 | . . . 1 . Weapon . | . . . . . Highest Loss Streak 1 | . . . 1 1 To Critical Strikes . | . . . . . Average Backups 6 | 1 3 5 8 7 Power . | . . . . . Propulsion . | . . . . . Utility 1 | . 1 1 1 2 Weapon 3 | . 2 2 4 3 Tool/Special . | . . . . . Unused Backups 24 | . 3 1 11 9 Power 3 | . . . 2 1 Propulsion 3 | . . . 2 1 Utility 7 | . 1 . 2 4 Weapon 11 | . 2 1 5 3 Tool/Special . | . . . . . Average Slot Usage (%) 93 | . 74 93 98 94 Engine 11 | . 12 12 11 12 Wheel 1 | . 6 . . 3 Flight 31 | . 18 32 35 28 Device 10 | . 20 25 6 4 Storage 5 | . . . 6 12 Hackware 7 | . . . 11 8 Ballistic Gun 11 | . 9 12 11 10 Ballistic Cannon 5 | . . . 6 13 Slashing Weapon 4 | . . 11 5 . Peak Build Rating 39 | 5 9 16 39 39 Average Rating 20 | 3 7 12 26 27 On Entrance 13 | . 5 7 16 39 Avg Prop Armor Cover (%) 2 | . . . . 2 Naked Turns . | . . . . . Heaviest Build 59 | 5 11 11 56 59 Greatest Support 37 | 20 20 13 13 37 Greatest Overweight (x) 4 | . 1 1 4 4 Average Overweight (x) . | . . . . 2 Largest Inventory Capacity 20 | 5 5 5 20 20 Average Capacity 11 | 5 5 5 13 20 Most Carried 20 | 4 5 5 20 20 Average Carried 8 | 1 3 4 11 11 Final Capacity 20 | 5 5 5 20 20 Final Carried 20 | 2 5 5 20 16 Class Distribution -------------------- 75% | Hacker-Mutant 24% | Hacker-Sprinter Dominant Class ---------------- Hacker-Mutant | -10/Materials Hacker-Mutant | -10/Mines Hacker-Mutant | -10/Subcaves Hacker-Mutant | -7/Recycling Resources | -11 -10 -10 -10 -7 ----------- Run | Yrd Mat Min Sub Rec Matter Collected 884 | 99 225 252 288 20 Remotely . | . . . . . Salvage Created 1257 | 187 308 98 265 399 Parts 86 | 25 18 16 14 13 Haulers Intercepted 2 | . 2 . . . Recyclers Shooed 4 | 1 . 1 . 2 Parts Field Recycled . | . . . . . Retrieved Matter . | . . . . . Parts Self-Destructed . | . . . . . Prevented . | . . . . . Parts Restored . | . . . . . Kills | -11 -10 -10 -10 -7 ------- Run | Yrd Mat Min Sub Rec Combat Hostiles Destroyed 21 | . 6 4 7 4 Melee 4 | . . 2 2 . Guns 12 | . 6 2 4 . Cannons 5 | . . . 1 4 Classes Destroyed 12 | 3 4 . 3 2 Worker 3 | 2 . 1 . . Tunneler 9 | 6 . 2 . 1 Hauler 2 | . 2 . . . Recycler 3 | 1 . . . 2 Turret 1 | . . . 1 . Watcher 3 | . 3 . . . Swarmer 10 | . 4 4 2 . Grunt 2 | . 2 . . . Protector 1 | . . . . 1 Sentry 1 | . . . 1 . Programmer 3 | . . . . 3 Subdweller 4 | . . . 4 . Best Kill Streak 7 | 6 2 2 1 7 Combat Bots Only 4 | . 2 2 1 4 Max Kills in Single Turn 1 | 1 1 1 1 1 Gunslinging . | . . . . . Exploded . | . . . . . Melee 1 | . . 1 1 . Uniques/NPCs Destroyed . | . . . . . Combat | -11 -10 -10 -10 -7 -------- Run | Yrd Mat Min Sub Rec Hostile Shots Fired 156 | . 37 23 53 43 Missed 53 | . 11 9 25 8 Hits 103 | . 26 14 28 35 Projectile 103 | . 26 14 28 35 AOE 3 | . . . 2 1 Critical Strikes 3 | . 1 1 1 . Damage Taken 961 | . 172 70 348 371 Core 256 | . 33 24 112 87 Absorbed by Shields . | . . . . . Ignored by Resistances 595 | . 111 49 211 224 Core Remaining (%) 100 | 100 . . . . Volleys Fired 154 | 29 69 11 32 13 Largest 2 | 1 1 1 2 2 Hottest 80 | 40 40 23 73 80 Shots Fired 168 | 29 69 11 33 26 Gun 138 | 29 66 11 32 . Cannon 27 | . . . 1 26 Launcher . | . . . . . Special 3 | . 3 . . . Kinetic 83 | . 13 11 33 26 Thermal 85 | 29 56 . . . Explosive . | . . . . . Electromagnetic . | . . . . . Robot Hit Streak 20 | 10 20 8 15 20 Robot Miss Streak 2 | 2 1 1 1 2 Penetration Max 1 | . . . . 1 Secondary Targets . | . . . . . Shots Hit Robots 154 | 25 63 14 35 17 Core Hits 53 | 10 17 7 11 8 Critical Kills . | . . . . . Critical Parts Destroyed 3 | . . . . 3 Critical Strikes 4 | . . . 1 3 Destroy 3 | . . . . 3 Sever 1 | . . . 1 . Melee Attacks 21 | . . 6 15 . Impact . | . . . . . Slashing 21 | . . 6 15 . Piercing . | . . . . . Sneak Attacks 1 | . . 1 . . Combat Hostiles . | . . . . . Follow-up Attacks . | . . . . . Damage Inflicted 2828 | 272 734 335 714 773 Guns 1636 | 272 722 156 486 . Cannons 796 | . . . 23 773 Explosions . | . . . . . Melee 384 | . . 179 205 . Ramming . | . . . . . Kinetic 1605 | . 167 156 509 773 Thermal 839 | 272 567 . . . Explosive . | . . . . . Electromagnetic . | . . . . . Impact . | . . . . . Slashing 384 | . . 179 205 . Piercing . | . . . . . Highest Corruption 1 | . . . . 1 Average Corruption 1 | . . . . 1 Corruption Purged . | . . . . . Corruption Blocked . | . . . . . Effects 1 | . . . . 1 Message Errors 1 | . . . . 1 Overload Shots . | . . . . . Overflow Damage 99 | . . 47 . 52 Projectiles 52 | . . . . 52 Explosions . | . . . . . Melee 47 | . . 47 . . Knockbacks 10 | . . . . 10 Impact . | . . . . . Kinetic 8 | . . . . 8 Secondary 2 | . . . . 2 Self-Inflicted Damage . | . . . . . Shots . | . . . . . Rammed . | . . . . . Targets Rammed . | . . . . . Kicked . | . . . . . Crushed . | . . . . . Highest Temperature 240 | 15 100 12 . 240 Average Temperature 54 | 10 34 6 . 127 Received Heat Transfer 228 | . 120 . 96 12 Effects 3 | . . . . 3 Interference 3 | . . . . 3 Siege Activations . | . . . . . Martial Activations . | . . . . . Shielding Activations . | . . . . . Robots Disrupted . | . . . . . Combat Hostiles . | . . . . . Robots Corrupted 1 | . . . . 1 Combat Hostiles . | . . . . . Parts Fried . | . . . . . Impact Corruptions 1 | . . . . 1 Robots Melted . | . . . . . Combat Hostiles . | . . . . . Parts Melted 3 | 1 2 . . . Heat Transferred 1912 | 625 1287 . . . Parts Sabotaged . | . . . . . Parts Stolen . | . . . . . Parts Stripped . | . . . . . Power Chain Reactions . | . . . . . Alert | -11 -10 -10 -10 -7 ------- Run | Yrd Mat Min Sub Rec Maximum Alert Level . | . . . . . Low Security (%) 100 | 100 100 100 . 100 Level 1 . | . . . . . Level 2 . | . . . . . Level 3 . | . . . . . Level 4 . | . . . . . Level 5 . | . . . . . High Security . | . . . . . Max Security . | . . . . . Peak Influence 100 | 10 50 100 . 77 Initial 2 | . 2 . . . Average 8 | 2 6 19 . 4 Influence Increases 799 | 45 210 145 302 97 Destroy 0b10 Robot/C 500 | . 120 80 240 60 Destroy 0b10 Robot/NC 120 | 45 25 15 . 35 Destroy Leader 90 | . 40 20 30 . Allied During Kill 2 | . . . 2 . Successful Hack 6 | . 6 . . . Disable Machine 4 | . 4 . . . Destroy Structure 2 | . . . . 2 Lose Combat Pursuer 75 | . 15 30 30 . Influence Decreases 737 | 40 215 145 302 35 Entered New Map 3 | . 3 . . . Time Decay 719 | 40 212 145 292 30 Lost Part 10 | . . . 10 . Lost Ally 5 | . . . . 5 Squads Dispatched . | . . . . . Investigation . | . . . . . Extermination . | . . . . . Reinforcement . | . . . . . Assault . | . . . . . Garrison . | . . . . . Intercept . | . . . . . Searches Triggered . | . . . . . Construction Impeded . | . . . . . Haulers Reinforced . | . . . . . Active Scanning Responses . | . . . . . Cargo Convoy Interrupts . | . . . . . Stealth | -11 -10 -10 -10 -7 --------- Run | Yrd Mat Min Sub Rec Distress Signals 1 | . 1 . . . Communications Jammed . | . . . . . Distress Signals . | . . . . . Times Spotted 45 | . 16 6 18 5 Peak Tracking Total 5 | . 4 4 3 5 Tactical Retreats 4 | . 1 1 2 . Traps | -11 -10 -10 -10 -7 ------- Run | Yrd Mat Min Sub Rec Traps Triggered 2 | . 1 . 1 . Indirectly . | . . . . . Trap Hack Attempts . | . . . . . Triggered . | . . . . . Disarmed . | . . . . . Reprogrammed . | . . . . . Reused . | . . . . . Traps Extracted . | . . . . . Installed . | . . . . . Triggered . | . . . . . Machines | -11 -10 -10 -10 -7 ---------- Run | Yrd Mat Min Sub Rec Machines Disabled 3 | . 1 . 2 . Max in Single Turn 1 | . 1 . 1 . Machines Repaired . | . . . . . Machines Dismantled 1 | . 1 . . . Machines Sabotaged . | . . . . . Overloaded Fab Kills . | . . . . . Hacking | -11 -10 -10 -10 -7 --------- Run | Yrd Mat Min Sub Rec Machines Accessed 12 | . 6 1 3 2 Terminals 7 | . 6 . . 1 Fabricators . | . . . . . Repair Stations . | . . . . . Recycling Units 1 | . . . . 1 Scanalyzers . | . . . . . Garrison Access . | . . . . . Total Hacks 22 | . 14 1 4 3 Successful 21 | . 14 1 4 2 Failed 1 | . . . . 1 Catastrophic . | . . . . . Database Lockouts . | . . . . . Manual 11 | . 9 . . 2 Terminals 16 | . 14 . . 2 Fabricators . | . . . . . Repair Stations . | . . . . . Recycling Units 1 | . . . . 1 Scanalyzers . | . . . . . Garrison Access . | . . . . . Terminal Hacks 12 | . 7 1 4 . Record 1 | . . . 1 . Prototype ID Bank 5 | . 5 . . . Open Door 2 | . . 1 1 . Registered Components 1 | . 1 . . . Zone Layout 1 | . 1 . . . Proto ID Catalog 1 | . . . 1 . Release Object 1 | . . . 1 . Fabricator Hacks . | . . . . . Repair Station Hacks . | . . . . . Recycling Unit Hacks 1 | . . . . 1 Retrieve Components 1 | . . . . 1 Scanalyzer . | . . . . . Garrison Access Hacks . | . . . . . Unauthorized Hacks 7 | . 6 . . 1 Terminals 7 | . 6 . . 1 Botnet 7 | . 6 . . 1 Fabricators . | . . . . . Repair Stations . | . . . . . Recycling Units . | . . . . . Scanalyzers . | . . . . . Garrison Access . | . . . . . Data Cores Recovered . | . . . . . Used . | . . . . . Hacking Detections 1 | . . . . 1 Full Trace Events . | . . . . . Feedback Events . | . . . . . Feedback Blocked . | . . . . . Robot Schematics Acquired . | . . . . . Robots Built . | . . . . . Authchips . | . . . . . Time . | . . . . . Total Robot Build Rating . | . . . . . Part Schematics Acquired . | . . . . . Parts Built . | . . . . . Authchips . | . . . . . Time . | . . . . . Total Part Build Rating . | . . . . . Part Studies Acquired . | . . . . . Parts Repaired . | . . . . . Time . | . . . . . Parts Recycled . | . . . . . Recycled Matter . | . . . . . Retrieved Matter . | . . . . . Retrieved Components . | . . . . . Parts Scanalyzed . | . . . . . Part Schematics Acquired . | . . . . . Parts Damaged . | . . . . . Bothacking | -11 -10 -10 -10 -7 ------------ Run | Yrd Mat Min Sub Rec Used RIF Installer . | . . . . . Robots Hacked . | . . . . . Non-combat . | . . . . . Combat . | . . . . . Robot Hacks Applied . | . . . . . Relay Couplers Released . | . . . . . Fabnet Peak Effective % . | . . . . . Robots Rewired . | . . . . . Allies Hacked . | . . . . . Hacks Repelled . | . . . . . Allies | -11 -10 -10 -10 -7 -------- Run | Yrd Mat Min Sub Rec Total Allies 3 | . . 3 . . Largest Group 3 | . . 3 3 1 Highest-Rated Group 40 | . . 40 40 16 Highest-Rated Ally 16 | . . 16 16 16 Total Orders . | . . . . . Ally Attacks 57 | . . . 57 . Total Damage 577 | . . . 577 . Kills 11 | . . . 11 . Allies Corrupted . | . . . . . Allies Melted . | . . . . . Intel | -11 -10 -10 -10 -7 ------- Run | Yrd Mat Min Sub Rec Active Infowar (turns) 2644 | 202 793 465 1184 . Sensors 2644 | 202 793 465 1184 . Structural 1200 | . 553 465 182 . Robot Analysis Total . | . . . . . Derelict Logs Recovered 2 | . . 1 1 . Drone Launches . | . . . . . Drone Recoveries . | . . . . . Exploration | -11 -10 -10 -10 -7 ------------- Run | Yrd Mat Min Sub Rec Turns Passed 4593 | 211 793 465 2679 445 Spaces Moved 4814 | 74 1209 814 2555 162 Core 70 | 70 . . . . Treads . | . . . . . Legs . | . . . . . Wheels 178 | 4 100 . . 74 Hover . | . . . . . Flight 4566 | . 1109 814 2555 88 Fastest Speed 32 | 50 37 32 32 115 Average Speed 77 | 51 48 44 91 238 Slowest Speed 352 | 80 117 117 352 352 Overloaded Moves . | . . . . . Propulsion Burnouts . | . . . . . Robots Hopped 9 | . 4 5 . . Potential Cave-ins . | . . . . . Cave-ins Triggered . | . . . . . Exploration Rate (%) 63 | 4 99 95 92 27 Regions Visited 4 Branch Regions 3 Pre-discovered Areas 1 | . . 1 . . Known Exits Taken 4 | 1 1 1 1 . Unknown Exits Taken . | . . . . . Scrap Searched 16 | . . 3 13 . Spaces Dug . | . . . . . Terrain Destroyed 3 | . . . . 3 Melee . | . . . . . Projectile 3 | . . . . 3 AOE . | . . . . . Terrain Rammed . | . . . . . Walls Destroyed . | . . . . . Machines Disabled . | . . . . . Actions | -11 -10 -10 -10 -7 --------- Run | Yrd Mat Min Sub Rec Total 5523 | 217 1331 902 2875 198 Wait 378 | 103 11 59 201 4 Move 4793 | 73 1200 804 2554 162 Hop 8 | . 4 4 . . Pick Up 58 | 7 14 1 25 11 Fast Attach 9 | . 4 2 3 . Attach 17 | 5 7 . 2 3 Detach 7 | . 2 . 1 4 Swap 22 | . 4 7 11 . Drop 52 | . 12 8 31 1 Fire 154 | 29 69 11 32 13 Melee 21 | . . 6 15 . Ram . | . . . . . Kick . | . . . . . Crush . | . . . . . Escape Stasis . | . . . . . Rewire . | . . . . . Trap . | . . . . . Miscellaneous 4 | . 4 . . . Route ------- -11/Scrapyard -10/Materials (discovered 5 exits: *Mat x3 / *Min / *Sub) -10/Mines (discovered 3 exits: *Mat x2 / *Sub) -10/Subcaves (discovered 3 exits: *Mat x2 / *Rec) -7/Recycling History --------- Turn | Location | Event 4 | -11/Scrapyard | Identified exit to Materials 4 | -11/Scrapyard | Discovered exit to Materials (range 16) 212 | -11/Scrapyard | Entered Materials 212 | -10/Materials | Evolved 1 slot: Propulsion x1 255 | -10/Materials | Identified exit to Materials 255 | -10/Materials | Discovered exit to Materials (range 13) 308 | -10/Materials | Build established: Hacker-Mutant 344 | -10/Materials | Discovered exit to Materials (range 15) 593 | -10/Materials | Identified exit to Mines 593 | -10/Materials | Discovered exit to Mines (range 11) 663 | -10/Materials | Discovered exit to Materials (range 5) 800 | -10/Materials | Identified exit to Subcaves 800 | -10/Materials | Discovered exit to Subcaves (range 8) 1005 | -10/Materials | Entered Mines 1019 | -10/Mines | Received a Rocket Launcher from a helpful Derelict 1038 | -10/Mines | A weapon hastily lodged in a ceiling crevice suddenly fell to the ground 1097 | -10/Mines | Discovered exit to Materials (range 6) 1198 | -10/Mines | Discovered exit to Materials (range 12) 1260 | -10/Mines | Met a Derelict who couldn't figure out how to use a Trap Extractor 1290 | -10/Mines | Assisted by bots powering up and referring to "LRC-V3" 1296 | -10/Mines | Learned location of Mines (-8) 1310 | -10/Mines | Discovered exit to Subcaves (range 14) 1354 | -10/Mines | Found a damaged Exp. Sensor Array with a note attached 1355 | -10/Mines | Found Prototype Device 1470 | -10/Mines | Entered Subcaves 1470 | -10/Subcaves | Accompanied by 3 allies 1479 | -10/Subcaves | Ambushed by Subdwellers from Twisted Machinery 1546 | -10/Subcaves | Build established: Hacker-Sprinter 1548 | -10/Subcaves | Visited 4L-MR0's lab 1570 | -10/Subcaves | Found Arachnoskeleton 1674 | -10/Subcaves | Identified Exp. Sensor Array 1908 | -10/Subcaves | Shifting Twisted Machinery released Sub. Power Source 1921 | -10/Subcaves | Identified exit to Materials 1921 | -10/Subcaves | Discovered exit to Materials (range 11) 2014 | -10/Subcaves | Identified exit to Recycling 2014 | -10/Subcaves | Discovered exit to Recycling (range 13) 2065 | -10/Subcaves | Shifting Twisted Machinery released Sub. Laser 2126 | -10/Subcaves | Shifting Twisted Machinery released Mak. Light Armor Plating 2128 | -10/Subcaves | Discovered exit to Materials (range 9) 2130 | -10/Subcaves | Shifting Twisted Machinery released Sub. Beam Cannon 2403 | -10/Subcaves | Shifting Twisted Machinery released Sub. Machine Gun 2437 | -10/Subcaves | Disturbed a concealed Subdweller 2681 | -10/Subcaves | Disturbed a concealed Subdweller 2683 | -10/Subcaves | Core integrity fell below 50% 2941 | -10/Subcaves | Build established: Hacker-Mutant 3673 | -10/Subcaves | Found SUBCON Basin 4149 | -10/Subcaves | Entered Recycling 4149 | -7/Recycling | Accompanied by 1 ally 4192 | -7/Recycling | Scanned before Scraplab entrance 4241 | -7/Recycling | Entered Scraplab 4577 | -7/Recycling | Core integrity fell below 20% 4594 | -7/Recycling | Destroyed by H-55 Commando with Gauss Rifle Last Messages --------------- 04584_ R-06 Scavenger collects Tractor Beam. 04585_ Penetrated by Slug. 04586_ H-55 Commando knocked back. 04588_ R-06 Scavenger collects Com. Wheel. 04589_ Destroyed Com. Wheel. 04589_ R-06 Scavenger suffers critical hit (Destroy). 04589_ Destroyed Tractor Beam. 04589_ R-06 Scavenger knocked back. 04591_ R-06 Scavenger collects Com. Wheel. 04592_ Destroyed Tractor Beam. 04592_ R-06 Scavenger knocked back. 04592_ H-55 Commando knocked back. 04594_ Overheating: System interference. 04594_ Adv. Weight Redist. System temporarily disabled. 04594_ Slug Cannon temporarily disabled. 04594_ Adv. Weight Redist. System temporarily disabled. 04594_ Penetrated by Slug. Map ----- +----------------------------------------------------+ | ?????????????????????????????????????????? | | ?????????????????????????????????????????? | | ?????????????????????????????????????????? | | ?????????????????????????????????????????? | | ?????????????????????????????????????????? | | ?????????????????????????????????????????? | | ?????????????????????????????????????????? | | ?????????????????????????????????????????? | | ?????????????????????????????????????????? | | ?????????????????????????????????????????? | | ?????????????????????????????????????????? | | ?????????????????????????????????????????? | | ?????????????????????????????????????????? | | ?????????????????????????????????????????? | | ?????????????????????????????????????????? | | ?????????????????????????????????????????? | | ?????????????###?????##################### | | ?????????#####;;####?# + | | ?????????#!% Y!u #?# ! ! ######## | | ?????????#gt %%%=t%#?# #?#####? | | ?????????#gar[ % #?# # ## | | ?????????#!%% % !#?# ! ! # | | ?????????# u%% k ### + | | ?????????#s*% %[ %/ # # | | ?????????#h%% % #?# #?? ## | | ?????????#%r%! r%@ #?# #????##? | | ?????????######;;;%### #??????? | | ???????# % r + ! #??????? | | ???????# # # % #??????? | | ???????# # ##############??????? | | ???????# ?+ ??????? | | ???????# ?# #??????????? | | ???????# ??# #??????????? | | ???????# ??+ % #????????? | | ???????# ???### % # ##### %%#????????? | | ???????# ?????# # #??????%#????????? | | ???????#####??????#####?#????????????????? | | ?????????????????????????????????????????? | | ?????????????????????????????????????????? | | ?????????????????????????????????????????? | | ?????????????????????????????????????????? | | ?????????????????????????????????????????? | | ?????????????????????????????????????????? | | ?????????????????????????????????????????? | | ?????????????????????????????????????????? | | ?????????????????????????????????????????? | | ?????????????????????????????????????????? | | ?????????????????????????????????????????? | | ?????????????????????????????????????????? | | ?????????????????????????????????????????? | +----------------------------------------------------+ Best States ------------- Heat Dissipation 25 Energy Generation 10 Energy Capacity 250 Matter Stores 300 Matter Capacity 300 Sight Range 16 Robot Scan Range 20 Terrain Scan Density 10 Additional Mass Support 9 Resistance: KI 35 Resistance: TH 35 Resistance: EX 35 Resistance: EM 35 Resistance: I 35 Resistance: S 35 Resistance: P 35 Evasion (%) 63 Offensive Hacking 20 Defensive Hacking 11 Item Schematics ----------------- None Robot Schematics ------------------ None Fabricated ------------ Nothing Repaired ---------- Nothing Studied --------- None Alien Tech Used ----------------- None Achievements -------------- None Challenges ------------ None Game ------ Seed ProjectileModifiedBotcube Manual? 0 Play Time 00:33:42 Cumulative 190.6 hours Start 2025.12.11 @ 12:26:20 End 2025.12.11 @ 12:57:47 Sessions 1 Manual Loads 0 Difficulty Explorer Special Mode None Game No. 274 Rogue 0 Adventurer 0 Explorer 274 Win Type - Total 0 Types 0/0/0/0/0/0/0/0/0/0 Lore% 71 Gallery% 67 Achievement% 53 Wizard Run 0 Options --------- Layout 1 ASCII 0 Keyboard 0 Movement Mouse Keybinds 0 Fullscreen 1 Font 24/Smallcaps Map View 50x35 Zoom Use 0% Tactical HUD 1 Map Filters NONE Filters NONE Steam 1 RUN: 9c0fef94-1aa6-4e39-86cb-23e934c1dccd